[Event "Championnat d'Europe de Blitz"]
[Date "2024.12.09"]
[White "Kiratzopoulos, Efthimios"]
[Black "Perunovic, Miodrag"]
[WhiteElo "2193"]
[BlackElo "2357"]
[Round "7.49"]
[Result "0-1"]
[TimeControl "180+2"]

1. d4 {[%emt 00:00:02] [%clk 00:03:02]} Nf6 {[%emt 00:00:04] [%clk 00:03:02]} 2.
Nf3 {[%clk 00:03:02]} e6 {[%emt 00:00:02] [%clk 00:03:02]} 3. Bg5 {[%emt
00:00:02] [%clk 00:03:03]} h6 {[%emt 00:00:02] [%clk 00:03:02]} 4. Bh4 {[%emt
00:00:01] [%clk 00:03:03]} b6 {[%emt 00:00:06] [%clk 00:02:58]} 5. Nbd2 {[%emt
00:00:02] [%clk 00:03:04]} Bb7 {[%emt 00:00:01] [%clk 00:02:58]} 6. e3 {[%emt
00:00:03] [%clk 00:03:04]} c5 {[%emt 00:00:02] [%clk 00:02:58]} 7. c3 {[%emt
00:00:01] [%clk 00:03:05]} cxd4 {[%emt 00:00:02] [%clk 00:02:59]} 8. exd4 {[%emt
00:00:01] [%clk 00:03:05]} Be7 {[%emt 00:00:04] [%clk 00:02:56]} 9. Bd3 {[%emt
00:00:02] [%clk 00:03:06]} O-O {[%emt 00:00:04] [%clk 00:02:54]} 10. O-O {[%emt
00:00:02] [%clk 00:03:06]} d6 {[%emt 00:00:02] [%clk 00:02:54]} 11. Qe2 {[%emt
00:00:03] [%clk 00:03:05]} Nbd7 {[%emt 00:00:07] [%clk 00:02:49]} 12. Ba6 {[%emt
00:00:07] [%clk 00:02:59]} Qc8 {[%emt 00:00:14] [%clk 00:02:37]} 13. Bxb7 {[%emt
00:00:03] [%clk 00:02:58]} Qxb7 {[%emt 00:00:02] [%clk 00:02:38]} 14. Rfe1
{[%emt 00:00:08] [%clk 00:02:52]} Rfe8 {[%emt 00:00:02] [%clk 00:02:38]} 15. h3
{[%emt 00:00:13] [%clk 00:02:41]} b5 {[%emt 00:00:03] [%clk 00:02:37]} 16. a4
{[%emt 00:00:14] [%clk 00:02:30]} bxa4 {[%emt 00:00:07] [%clk 00:02:31]} 17. Nc4
{[%clk 00:02:30]} Rec8 {[%emt 00:00:22] [%clk 00:02:11]} 18. Rxa4 {[%emt
00:00:21] [%clk 00:02:11]} Qb5 {[%emt 00:00:05] [%clk 00:02:08]} 19. Rb4 {[%emt
00:00:02] [%clk 00:02:12]} Qa6 {[%emt 00:00:13] [%clk 00:01:56]} 20. Ne3 {[%emt
00:00:19] [%clk 00:01:55]} Qc6 {[%emt 00:00:11] [%clk 00:01:48]} 21. Rc4 {[%emt
00:00:43] [%clk 00:01:14]} Qb7 {[%emt 00:00:07] [%clk 00:01:43]} 22. Rxc8+
{[%emt 00:00:04] [%clk 00:01:12]} Rxc8 {[%emt 00:00:05] [%clk 00:01:39]} 23. Ra1
{[%emt 00:00:08] [%clk 00:01:07]} Rb8 {[%emt 00:00:04] [%clk 00:01:38]} 24. b4
{[%emt 00:00:34] [%clk 00:00:35]} Bf8 {[%emt 00:00:02] [%clk 00:01:37]} 25. Qa6
{[%emt 00:00:08] [%clk 00:00:29]} Qc7 {[%emt 00:00:02] [%clk 00:01:37]} 26. Ra3
{[%emt 00:00:09] [%clk 00:00:21]} Rb7 {[%emt 00:00:09] [%clk 00:01:31]} 27. Bg3
{[%emt 00:00:03] [%clk 00:00:20]} Ne4 {[%emt 00:00:02] [%clk 00:01:31]} 28. Qc4
{[%emt 00:00:10] [%clk 00:00:12]} Nxg3 {[%emt 00:00:06] [%clk 00:01:27]} 29.
Qxc7 {[%emt 00:00:02] [%clk 00:00:12]} Rxc7 {[%emt 00:00:11] [%clk 00:01:18]}
30. fxg3 {[%emt 00:00:02] [%clk 00:00:13]} d5 {[%emt 00:00:02] [%clk 00:01:17]}
31. Ne1 {[%emt 00:00:06] [%clk 00:00:08]} Nf6 {[%emt 00:00:07] [%clk 00:01:13]}
32. Nd3 {[%emt 00:00:01] [%clk 00:00:09]} Ne4 {[%clk 00:01:14]} 33. Nc5 {[%emt
00:00:01] [%clk 00:00:10]} Bxc5 {[%clk 00:01:16]} 34. bxc5 {[%emt 00:00:01]
[%clk 00:00:11]} Nxg3 {[%clk 00:01:17]} 35. Ra6 {[%emt 00:00:06] [%clk
00:00:07]} Ne2+ {[%emt 00:00:02] [%clk 00:01:17]} 36. Kf2 {[%emt 00:00:01] [%clk
00:00:08]} Nxc3 {[%emt 00:00:01] [%clk 00:01:18]} 37. Ng4 {[%emt 00:00:03] [%clk
00:00:07]} Nb5 {[%emt 00:00:05] [%clk 00:01:15]} 38. Ke3 {[%emt 00:00:01] [%clk
00:00:07]} Nc3 {[%emt 00:00:23] [%clk 00:00:55]} 39. Ne5 {[%emt 00:00:01] [%clk
00:00:08]} f6 {[%emt 00:00:05] [%clk 00:00:51]} 40. Nd3 {[%emt 00:00:02] [%clk
00:00:09]} Kf7 {[%emt 00:00:03] [%clk 00:00:50]} 41. Nf4 {[%clk 00:00:10]} Re7
{[%emt 00:00:10] [%clk 00:00:42]} 42. c6 {[%emt 00:00:01] [%clk 00:00:11]} Nb5
{[%emt 00:00:02] [%clk 00:00:43]} 43. Nd3 {[%emt 00:00:01] [%clk 00:00:11]} Nd6
{[%emt 00:00:02] [%clk 00:00:43]} 44. Nc5 {[%emt 00:00:02] [%clk 00:00:11]} Rc7
{[%emt 00:00:04] [%clk 00:00:41]} 45. Kd3 {[%emt 00:00:02] [%clk 00:00:11]} e5
{[%emt 00:00:05] [%clk 00:00:38]} 46. Nb3 {[%emt 00:00:04] [%clk 00:00:09]} e4+
{[%emt 00:00:02] [%clk 00:00:38]} 47. Kc3 {[%emt 00:00:02] [%clk 00:00:08]} f5
{[%emt 00:00:03] [%clk 00:00:38]} 48. Kb4 {[%clk 00:00:10]} e3 {[%emt 00:00:03]
[%clk 00:00:38]} 49. Nc1 {[%emt 00:00:02] [%clk 00:00:10]} Ne4 {[%emt 00:00:03]
[%clk 00:00:37]} 50. Nd3 {[%emt 00:00:01] [%clk 00:00:10]} Ke6 {[%emt 00:00:02]
[%clk 00:00:37]} 51. Nc5+ {[%emt 00:00:05] [%clk 00:00:07]} Kd6 {[%emt 00:00:06]
[%clk 00:00:34]} 52. Nb7+ {[%emt 00:00:01] [%clk 00:00:07]} Ke6 {[%emt 00:00:03]
[%clk 00:00:34]} 53. Nc5+ {[%clk 00:00:08]} Nxc5 {[%emt 00:00:04] [%clk
00:00:32]} 54. Kxc5 {[%clk 00:00:09]} f4 {[%emt 00:00:03] [%clk 00:00:31]} 55.
Ra2 {[%emt 00:00:02] [%clk 00:00:09]} g5 {[%emt 00:00:01] [%clk 00:00:32]} 56.
Rb2 {[%emt 00:00:02] [%clk 00:00:09]} h5 {[%emt 00:00:03] [%clk 00:00:31]} 57.
Rb8 {[%emt 00:00:01] [%clk 00:00:10]} g4 {[%emt 00:00:02] [%clk 00:00:30]} 58.
hxg4 {[%emt 00:00:02] [%clk 00:00:11]} hxg4 {[%clk 00:00:32]} 59. Re8+ {[%emt
00:00:01] [%clk 00:00:12]} Re7 {[%emt 00:00:09] [%clk 00:00:26]} 60. Rb8 {[%emt
00:00:09] [%clk 00:00:04]} e2 {[%emt 00:00:03] [%clk 00:00:26]} 61. Rb1 {[%emt
00:00:01] [%clk 00:00:04]} f3 {[%emt 00:00:02] [%clk 00:00:26]} 62. gxf3 {[%clk
00:00:05]} gxf3 {[%clk 00:00:27]} 63. Rh1 {[%emt 00:00:02] [%clk 00:00:05]} f2
{[%emt 00:00:04] [%clk 00:00:25]} 64. Rh6+ {[%clk 00:00:07]} Kf5 {[%clk
00:00:26]} 65. Kd6 {[%emt 00:00:01] [%clk 00:00:08]} e1=Q {[%emt 00:00:04] [%clk
00:00:25]} 0-1

[Site "Europe Echecs"]

[Event "Championnat d'Europe de Blitz"]
[Date "2024.12.09"]
[White "Nakonechnyi, Oleksii"]
[Black "Aizenberg, Benny"]
[WhiteElo "2052"]
[BlackElo "2425"]
[Round "7.50"]
[Result "0-1"]
[TimeControl "180+2"]

1. Nf3 {[%clk 00:03:03]} c5 {[%emt 00:00:01] [%clk 00:03:03]} 2. g3 {[%emt
00:00:01] [%clk 00:03:04]} d5 {[%emt 00:00:01] [%clk 00:03:04]} 3. Bg2 {[%emt
00:00:03] [%clk 00:03:05]} g6 {[%clk 00:03:04]} 4. O-O {[%clk 00:03:06]} Bg7
{[%clk 00:03:05]} 5. d4 {[%clk 00:03:07]} cxd4 {[%emt 00:00:03] [%clk 00:03:04]}
6. Nxd4 {[%emt 00:00:01] [%clk 00:03:08]} e5 {[%emt 00:00:04] [%clk 00:03:03]}
7. Nb3 {[%emt 00:00:02] [%clk 00:03:08]} Ne7 {[%emt 00:00:01] [%clk 00:03:03]}
8. c4 {[%emt 00:00:08] [%clk 00:03:01]} d4 {[%emt 00:00:01] [%clk 00:03:04]} 9.
e3 {[%emt 00:00:02] [%clk 00:03:01]} O-O {[%emt 00:00:03] [%clk 00:03:03]} 10.
exd4 {[%emt 00:00:02] [%clk 00:03:02]} exd4 {[%clk 00:03:04]} 11. Re1 {[%emt
00:00:01] [%clk 00:03:02]} h6 {[%emt 00:00:13] [%clk 00:02:53]} 12. Na3 {[%emt
00:00:08] [%clk 00:02:57]} Nbc6 {[%emt 00:00:02] [%clk 00:02:53]} 13. Nc2 {[%emt
00:00:13] [%clk 00:02:46]} Bf5 {[%emt 00:00:11] [%clk 00:02:44]} 14. Nc5 {[%emt
00:00:16] [%clk 00:02:32]} Qb6 {[%emt 00:00:19] [%clk 00:02:27]} 15. Nd3 {[%emt
00:00:12] [%clk 00:02:22]} Rad8 {[%emt 00:00:07] [%clk 00:02:22]} 16. Rb1 {[%emt
00:00:24] [%clk 00:01:59]} Rfe8 {[%emt 00:00:23] [%clk 00:02:01]} 17. b3 {[%emt
00:00:11] [%clk 00:01:50]} g5 {[%emt 00:00:30] [%clk 00:01:32]} 18. Bb2 {[%emt
00:00:10] [%clk 00:01:43]} Ng6 {[%emt 00:00:04] [%clk 00:01:31]} 19. Qd2 {[%emt
00:00:07] [%clk 00:01:38]} Nce5 {[%emt 00:00:28] [%clk 00:01:05]} 20. Nxe5
{[%emt 00:00:04] [%clk 00:01:36]} Nxe5 {[%emt 00:00:02] [%clk 00:01:05]} 21.
Rbd1 {[%emt 00:00:13] [%clk 00:01:24]} d3 {[%emt 00:00:09] [%clk 00:00:59]} 22.
Ne3 {[%emt 00:00:04] [%clk 00:01:21]} Be6 {[%emt 00:00:05] [%clk 00:00:57]} 23.
Bxe5 {[%emt 00:00:13] [%clk 00:01:10]} Bxe5 {[%emt 00:00:01] [%clk 00:00:58]}
24. Nd5 {[%clk 00:01:11]} Bxd5 {[%emt 00:00:07] [%clk 00:00:53]} 25. Bxd5 {[%clk
00:01:11]} Bd4 {[%clk 00:00:54]} 26. Rxe8+ {[%emt 00:00:07] [%clk 00:01:06]}
Rxe8 {[%emt 00:00:01] [%clk 00:00:55]} 27. Qxd3 {[%emt 00:00:01] [%clk
00:01:07]} Bxf2+ {[%emt 00:00:03] [%clk 00:00:55]} 28. Kg2 {[%clk 00:01:08]} Be1
{[%emt 00:00:07] [%clk 00:00:50]} 29. Qf1 {[%emt 00:00:11] [%clk 00:01:00]} Qg6
{[%emt 00:00:38] [%clk 00:00:14]} 30. Rxe1 {[%emt 00:00:03] [%clk 00:00:59]}
Qc2+ {[%emt 00:00:01] [%clk 00:00:15]} 31. Kh1 {[%emt 00:00:02] [%clk 00:00:59]}
Rxe1 {[%emt 00:00:06] [%clk 00:00:11]} 32. Qxe1 {[%clk 00:01:00]} Qf5 {[%emt
00:00:01] [%clk 00:00:12]} 33. Kg2 {[%emt 00:00:03] [%clk 00:00:59]} b6 {[%emt
00:00:01] [%clk 00:00:14]} 34. Qf2 {[%clk 00:01:01]} Qg6 {[%emt 00:00:02] [%clk
00:00:14]} 35. b4 {[%emt 00:00:02] [%clk 00:01:01]} Kg7 {[%emt 00:00:04] [%clk
00:00:11]} 36. c5 {[%emt 00:00:03] [%clk 00:01:00]} bxc5 {[%emt 00:00:04] [%clk
00:00:09]} 37. bxc5 {[%clk 00:01:01]} f6 {[%emt 00:00:01] [%clk 00:00:11]} 38.
c6 {[%clk 00:01:02]} Qd3 {[%clk 00:00:12]} 39. Bf3 {[%emt 00:00:08] [%clk
00:00:56]} Qc3 {[%emt 00:00:08] [%clk 00:00:05]} 40. Qxa7+ {[%emt 00:00:04]
[%clk 00:00:54]} Kg6 {[%clk 00:00:07]} 41. Qf2 {[%emt 00:00:02] [%clk 00:00:53]}
f5 {[%emt 00:00:03] [%clk 00:00:06]} 42. g4 {[%emt 00:00:25] [%clk 00:00:30]}
fxg4 {[%emt 00:00:03] [%clk 00:00:06]} 43. Be4+ {[%emt 00:00:01] [%clk
00:00:31]} Kh5 {[%emt 00:00:01] [%clk 00:00:07]} 44. Qc2 {[%emt 00:00:08] [%clk
00:00:25]} 0-1

[Site "Europe Echecs"]

[Event "Championnat d'Europe de Blitz"]
[Date "2024.12.09"]
[White "Pacher, Milan"]
[Black "Goraj, Barbara"]
[WhiteElo "2310"]
[BlackElo "2178"]
[Round "7.51"]
[Result "0-1"]
[TimeControl "180+2"]

1. e4 {[%clk 00:03:03]} c5 {[%emt 00:00:01] [%clk 00:03:03]} 2. Nf3 {[%emt
00:00:02] [%clk 00:03:04]} Nc6 {[%emt 00:00:01] [%clk 00:03:04]} 3. d4 {[%emt
00:00:03] [%clk 00:03:04]} cxd4 {[%clk 00:03:04]} 4. Nxd4 {[%clk 00:03:05]} Nf6
{[%emt 00:00:02] [%clk 00:03:04]} 5. Nc3 {[%emt 00:00:01] [%clk 00:03:06]} d6
{[%emt 00:00:02] [%clk 00:03:05]} 6. Bg5 {[%emt 00:00:01] [%clk 00:03:06]} e6
{[%emt 00:00:02] [%clk 00:03:06]} 7. Qd2 {[%clk 00:03:07]} a6 {[%emt 00:00:02]
[%clk 00:03:06]} 8. O-O-O {[%emt 00:00:02] [%clk 00:03:06]} Bd7 {[%clk
00:03:07]} 9. f3 {[%emt 00:00:01] [%clk 00:03:07]} Be7 {[%emt 00:00:08] [%clk
00:03:01]} 10. h4 {[%emt 00:00:03] [%clk 00:03:05]} h6 {[%emt 00:00:03] [%clk
00:03:01]} 11. Be3 {[%emt 00:00:03] [%clk 00:03:04]} h5 {[%emt 00:00:02] [%clk
00:03:01]} 12. Bg5 {[%emt 00:00:02] [%clk 00:03:03]} Nxd4 {[%emt 00:00:06] [%clk
00:02:58]} 13. Qxd4 {[%emt 00:00:01] [%clk 00:03:03]} Qc7 {[%emt 00:00:18] [%clk
00:02:43]} 14. Kb1 {[%emt 00:00:01] [%clk 00:03:03]} b5 {[%emt 00:00:04] [%clk
00:02:42]} 15. Qd2 {[%emt 00:00:27] [%clk 00:02:38]} b4 {[%emt 00:00:05] [%clk
00:02:40]} 16. Ne2 {[%emt 00:00:02] [%clk 00:02:37]} Rb8 {[%emt 00:00:01] [%clk
00:02:41]} 17. Nd4 {[%emt 00:00:06] [%clk 00:02:34]} a5 {[%emt 00:00:07] [%clk
00:02:35]} 18. Bd3 {[%emt 00:00:23] [%clk 00:02:13]} a4 {[%emt 00:00:08] [%clk
00:02:29]} 19. Qe2 {[%emt 00:00:08] [%clk 00:02:06]} Qa5 {[%emt 00:00:34] [%clk
00:01:58]} 20. Bc4 {[%emt 00:00:13] [%clk 00:01:55]} O-O {[%emt 00:00:24] [%clk
00:01:37]} 21. g4 {[%emt 00:00:03] [%clk 00:01:53]} hxg4 {[%emt 00:00:06] [%clk
00:01:33]} 22. fxg4 {[%emt 00:00:01] [%clk 00:01:53]} Rfc8 {[%emt 00:00:05]
[%clk 00:01:31]} 23. Nf3 {[%emt 00:00:14] [%clk 00:01:41]} Bb5 {[%emt 00:00:24]
[%clk 00:01:09]} 24. Bxb5 {[%emt 00:00:12] [%clk 00:01:31]} Rxb5 {[%emt
00:00:15] [%clk 00:00:56]} 25. Rhe1 {[%emt 00:00:23] [%clk 00:01:10]} b3 {[%emt
00:00:09] [%clk 00:00:49]} 26. cxb3 {[%emt 00:00:07] [%clk 00:01:05]} axb3
{[%emt 00:00:02] [%clk 00:00:49]} 27. a3 {[%clk 00:01:06]} Rc2 {[%emt 00:00:14]
[%clk 00:00:37]} 28. Rd2 {[%emt 00:00:04] [%clk 00:01:04]} Rbc5 {[%emt 00:00:32]
[%clk 00:00:08]} 29. Nd4 {[%emt 00:00:03] [%clk 00:01:02]} Rxd2 {[%emt 00:00:04]
[%clk 00:00:07]} 30. Qxd2 {[%emt 00:00:12] [%clk 00:00:52]} Qa4 {[%emt 00:00:03]
[%clk 00:00:06]} 31. Qd3 {[%emt 00:00:30] [%clk 00:00:23]} Rc4 {[%emt 00:00:05]
[%clk 00:00:03]} 32. Nxb3 {[%emt 00:00:07] [%clk 00:00:18]} Bf8 {[%emt 00:00:02]
[%clk 00:00:04]} 33. Bxf6 {[%emt 00:00:02] [%clk 00:00:18]} gxf6 {[%emt
00:00:02] [%clk 00:00:04]} 34. Nd2 {[%emt 00:00:03] [%clk 00:00:17]} Rc8 {[%emt
00:00:02] [%clk 00:00:04]} 35. Rc1 {[%emt 00:00:04] [%clk 00:00:14]} Rb8 {[%emt
00:00:03] [%clk 00:00:04]} 36. Ka2 {[%emt 00:00:03] [%clk 00:00:12]} Qa7 {[%emt
00:00:03] [%clk 00:00:03]} 37. Nc4 {[%emt 00:00:05] [%clk 00:00:09]} Qf2 {[%emt
00:00:02] [%clk 00:00:03]} 38. Rc2 {[%emt 00:00:02] [%clk 00:00:10]} Qxh4 {[%clk
00:00:04]} 39. Qf3 {[%emt 00:00:02] [%clk 00:00:10]} Be7 {[%emt 00:00:03] [%clk
00:00:03]} 40. Ne3 {[%emt 00:00:03] [%clk 00:00:08]} Qe1 {[%emt 00:00:01] [%clk
00:00:04]} 41. g5 {[%emt 00:00:08] [%clk 00:00:03]} fxg5 {[%clk 00:00:05]} 42.
Ng4 {[%emt 00:00:01] [%clk 00:00:04]} Kg7 {[%emt 00:00:01] [%clk 00:00:06]} 43.
Rh2 {[%emt 00:00:01] [%clk 00:00:04]} Qa5 {[%emt 00:00:03] [%clk 00:00:05]} 44.
Rh7+ {[%emt 00:00:01] [%clk 00:00:04]} 0-1

[Site "Europe Echecs"]

[Event "Championnat d'Europe de Blitz"]
[Date "2024.12.09"]
[White "Bognar, Csaba Dr."]
[Black "Diermair, Andreas"]
[WhiteElo "2067"]
[BlackElo "2433"]
[Round "7.52"]
[Result "1/2-1/2"]
[TimeControl "180+2"]

1. d4 {[%emt 00:20:20] [%clk 00:03:03]} Nf6 {[%emt 00:00:02] [%clk 00:03:03]} 2.
c4 {[%emt 00:00:01] [%clk 00:03:04]} e6 {[%emt 00:00:03] [%clk 00:03:04]} 3. Nf3
{[%clk 00:03:04]} b6 {[%emt 00:00:04] [%clk 00:03:01]} 4. g3 {[%emt 00:00:02]
[%clk 00:03:04]} Ba6 {[%emt 00:00:01] [%clk 00:03:02]} 5. Nbd2 {[%emt 00:00:02]
[%clk 00:03:04]} d5 {[%emt 00:00:07] [%clk 00:02:57]} 6. b3 {[%emt 00:00:05]
[%clk 00:03:01]} Be7 {[%emt 00:00:09] [%clk 00:02:49]} 7. Bg2 {[%emt 00:00:02]
[%clk 00:03:01]} O-O {[%emt 00:00:02] [%clk 00:02:49]} 8. O-O {[%emt 00:00:02]
[%clk 00:03:01]} c5 {[%emt 00:00:03] [%clk 00:02:49]} 9. Bb2 {[%emt 00:00:02]
[%clk 00:03:01]} Nbd7 {[%emt 00:00:02] [%clk 00:02:49]} 10. Rc1 {[%emt 00:00:06]
[%clk 00:02:56]} Rc8 {[%emt 00:00:03] [%clk 00:02:49]} 11. cxd5 {[%emt 00:00:15]
[%clk 00:02:43]} exd5 {[%emt 00:00:02] [%clk 00:02:49]} 12. Re1 {[%emt 00:00:06]
[%clk 00:02:38]} Bb7 {[%emt 00:00:08] [%clk 00:02:45]} 13. Ne5 {[%emt 00:00:09]
[%clk 00:02:30]} Re8 {[%emt 00:00:10] [%clk 00:02:36]} 14. Nd3 {[%emt 00:00:10]
[%clk 00:02:23]} Bd6 {[%emt 00:00:14] [%clk 00:02:24]} 15. e3 {[%emt 00:00:16]
[%clk 00:02:08]} Nf8 {[%emt 00:00:07] [%clk 00:02:20]} 16. Nf3 {[%emt 00:00:08]
[%clk 00:02:02]} Ne4 {[%emt 00:00:06] [%clk 00:02:17]} 17. Nd2 {[%emt 00:00:17]
[%clk 00:01:46]} Nf6 {[%emt 00:00:23] [%clk 00:01:56]} 18. Nf3 {[%emt 00:00:01]
[%clk 00:01:47]} Ne6 {[%emt 00:00:03] [%clk 00:01:55]} 19. Nfe5 {[%emt 00:00:09]
[%clk 00:01:40]} Ne4 {[%emt 00:00:29] [%clk 00:01:28]} 20. f3 {[%emt 00:00:04]
[%clk 00:01:38]} Nf6 {[%emt 00:00:04] [%clk 00:01:26]} 21. Qd2 {[%emt 00:00:05]
[%clk 00:01:34]} a6 {[%emt 00:00:15] [%clk 00:01:14]} 22. Nf4 {[%emt 00:00:10]
[%clk 00:01:26]} Nxf4 {[%emt 00:00:13] [%clk 00:01:02]} 23. exf4 {[%emt
00:00:24] [%clk 00:01:05]} b5 {[%emt 00:00:09] [%clk 00:00:56]} 24. dxc5 {[%emt
00:00:05] [%clk 00:01:01]} Bxc5+ {[%emt 00:00:02] [%clk 00:00:56]} 25. Bd4
{[%emt 00:00:08] [%clk 00:00:54]} Bxd4+ {[%emt 00:00:15] [%clk 00:00:44]} 26.
Qxd4 {[%emt 00:00:02] [%clk 00:00:54]} Qd6 {[%emt 00:00:03] [%clk 00:00:43]} 27.
Bf1 {[%emt 00:00:17] [%clk 00:00:39]} h6 {[%emt 00:00:09] [%clk 00:00:36]} 28.
Bd3 {[%emt 00:00:02] [%clk 00:00:39]} Nd7 {[%emt 00:00:08] [%clk 00:00:30]} 29.
Nxd7 {[%emt 00:00:13] [%clk 00:00:28]} Qxd7 {[%emt 00:00:02] [%clk 00:00:31]}
30. Kf2 {[%emt 00:00:04] [%clk 00:00:26]} Rxc1 {[%emt 00:00:06] [%clk 00:00:26]}
31. Rxc1 {[%clk 00:00:27]} Qd6 {[%emt 00:00:07] [%clk 00:00:22]} 32. Re1 {[%emt
00:00:04] [%clk 00:00:24]} Rxe1 {[%emt 00:00:09] [%clk 00:00:16]} 33. Kxe1
{[%emt 00:00:01] [%clk 00:00:25]} Qe6+ {[%emt 00:00:05] [%clk 00:00:12]} 34. Kf2
{[%emt 00:00:01] [%clk 00:00:26]} Qd6 {[%clk 00:00:13]} 35. Bb1 {[%emt 00:00:03]
[%clk 00:00:25]} g6 {[%emt 00:00:05] [%clk 00:00:11]} 36. Qd3 {[%emt 00:00:01]
[%clk 00:00:25]} Qc5+ {[%emt 00:00:02] [%clk 00:00:12]} 37. Qe3 {[%emt 00:00:04]
[%clk 00:00:22]} Qd6 {[%emt 00:00:06] [%clk 00:00:08]} 38. Qd4 {[%emt 00:00:02]
[%clk 00:00:22]} 1/2-1/2

[Site "Europe Echecs"]

[Event "Championnat d'Europe de Blitz"]
[Date "2024.12.09"]
[White "Narva, Triin"]
[Black "Alienkin, Aleksander"]
[WhiteElo "2064"]
[BlackElo "2337"]
[Round "7.53"]
[Result "1-0"]
[TimeControl "180+2"]

1. e4 {[%clk 00:03:03]} c5 {[%emt 00:00:01] [%clk 00:03:03]} 2. Nf3 {[%emt
00:00:02] [%clk 00:03:03]} a6 {[%emt 00:00:03] [%clk 00:03:05]} 3. c3 {[%emt
00:00:04] [%clk 00:02:58]} e6 {[%emt 00:00:02] [%clk 00:03:05]} 4. d4 {[%emt
00:00:02] [%clk 00:02:57]} d5 {[%emt 00:00:06] [%clk 00:03:01]} 5. e5 {[%emt
00:00:24] [%clk 00:02:35]} Bd7 {[%emt 00:00:01] [%clk 00:03:02]} 6. Be3 {[%emt
00:00:19] [%clk 00:02:18]} Ne7 {[%emt 00:00:10] [%clk 00:02:54]} 7. Bd3 {[%emt
00:00:06] [%clk 00:02:14]} cxd4 {[%emt 00:00:08] [%clk 00:02:49]} 8. cxd4 {[%emt
00:00:07] [%clk 00:02:08]} Bb5 {[%emt 00:00:03] [%clk 00:02:49]} 9. Bxb5+ {[%emt
00:00:19] [%clk 00:01:51]} axb5 {[%emt 00:00:01] [%clk 00:02:50]} 10. Qb3 {[%emt
00:00:09] [%clk 00:01:44]} Qa5+ {[%emt 00:00:11] [%clk 00:02:40]} 11. Nfd2
{[%emt 00:00:19] [%clk 00:01:27]} Nf5 {[%emt 00:00:10] [%clk 00:02:31]} 12. Nc3
{[%emt 00:00:06] [%clk 00:01:24]} b4 {[%emt 00:00:04] [%clk 00:02:29]} 13. Ne2
{[%emt 00:00:03] [%clk 00:01:23]} Nc6 {[%emt 00:00:02] [%clk 00:02:30]} 14. O-O
{[%emt 00:00:09] [%clk 00:01:16]} Be7 {[%clk 00:02:31]} 15. g4 {[%emt 00:00:16]
[%clk 00:01:02]} Nxe3 {[%emt 00:00:07] [%clk 00:02:27]} 16. Qxe3 {[%emt
00:00:02] [%clk 00:01:02]} O-O {[%emt 00:00:03] [%clk 00:02:26]} 17. f4 {[%emt
00:00:03] [%clk 00:01:00]} f5 {[%emt 00:00:12] [%clk 00:02:16]} 18. exf6 {[%emt
00:00:31] [%clk 00:00:32]} Bxf6 {[%emt 00:00:10] [%clk 00:02:07]} 19. g5 {[%emt
00:00:20] [%clk 00:00:14]} Bd8 {[%emt 00:00:06] [%clk 00:02:03]} 20. Nb3 {[%emt
00:00:03] [%clk 00:00:13]} Qb5 {[%emt 00:00:05] [%clk 00:02:01]} 21. Qxe6+
{[%clk 00:00:14]} Kh8 {[%clk 00:02:02]} 22. g6 {[%emt 00:00:09] [%clk 00:00:07]}
Bf6 {[%emt 00:00:12] [%clk 00:01:51]} 23. Qh3 {[%emt 00:00:03] [%clk 00:00:07]}
h6 {[%emt 00:00:01] [%clk 00:01:52]} 24. Ng3 {[%emt 00:00:06] [%clk 00:00:04]}
Bxd4+ {[%emt 00:00:09] [%clk 00:01:45]} 25. Kh1 {[%emt 00:00:02] [%clk
00:00:04]} Bxb2 {[%emt 00:00:11] [%clk 00:01:35]} 26. Rad1 {[%emt 00:00:03]
[%clk 00:00:03]} Rf6 {[%emt 00:00:09] [%clk 00:01:28]} 27. f5 {[%emt 00:00:03]
[%clk 00:00:03]} Rxa2 {[%emt 00:00:05] [%clk 00:01:24]} 28. Nh5 {[%emt 00:00:01]
[%clk 00:00:05]} Qe2 {[%emt 00:00:07] [%clk 00:01:19]} 29. Rde1 {[%emt 00:00:03]
[%clk 00:00:04]} Be5 {[%emt 00:00:07] [%clk 00:01:12]} 30. Rxe2 {[%emt 00:00:02]
[%clk 00:00:05]} Rxe2 {[%clk 00:01:14]} 31. Qf3 {[%emt 00:00:04] [%clk
00:00:03]} Rxh2+ {[%emt 00:00:02] [%clk 00:01:14]} 32. Kg1 {[%clk 00:00:04]} Rb2
{[%emt 00:00:04] [%clk 00:01:12]} 33. Qxd5 {[%emt 00:00:02] [%clk 00:00:04]} Rf8
{[%emt 00:00:05] [%clk 00:01:09]} 34. Rf2 {[%emt 00:00:03] [%clk 00:00:04]} Rb1+
{[%emt 00:00:03] [%clk 00:01:08]} 35. Kg2 {[%emt 00:00:01] [%clk 00:00:05]} Rd8
{[%clk 00:01:09]} 36. Qf7 {[%emt 00:00:02] [%clk 00:00:05]} Rbd1 {[%emt
00:00:02] [%clk 00:01:09]} 37. Nc5 {[%emt 00:00:02] [%clk 00:00:06]} Bd4 {[%emt
00:00:02] [%clk 00:01:08]} 38. Ne6 {[%emt 00:00:01] [%clk 00:00:07]} Rg8 {[%emt
00:00:05] [%clk 00:01:05]} 39. f6 {[%emt 00:00:04] [%clk 00:00:06]} Nd8 {[%emt
00:00:11] [%clk 00:00:56]} 40. fxg7+ {[%emt 00:00:01] [%clk 00:00:06]} Bxg7
{[%clk 00:00:57]} 41. Nxd8 {[%emt 00:00:03] [%clk 00:00:05]} Rdxd8 {[%emt
00:00:03] [%clk 00:00:57]} 42. Nf6 {[%emt 00:00:03] [%clk 00:00:04]} Rdf8 {[%emt
00:00:02] [%clk 00:00:56]} 43. Qe7 {[%emt 00:00:02] [%clk 00:00:05]} b3 {[%emt
00:00:07] [%clk 00:00:51]} 44. Nxg8 {[%emt 00:00:01] [%clk 00:00:05]} Rxg8
{[%clk 00:00:53]} 45. Qxb7 {[%emt 00:00:02] [%clk 00:00:05]} b2 {[%clk
00:00:54]} 46. Rf7 {[%emt 00:00:02] [%clk 00:00:05]} h5 {[%emt 00:00:03] [%clk
00:00:52]} 47. Kh3 {[%emt 00:00:02] [%clk 00:00:05]} h4 {[%emt 00:00:04] [%clk
00:00:50]} 48. Kxh4 {[%emt 00:00:02] [%clk 00:00:05]} Rd8 {[%emt 00:00:05] [%clk
00:00:46]} 49. Rxg7 {[%emt 00:00:02] [%clk 00:00:06]} Rd4+ {[%clk 00:00:47]} 50.
Kg5 {[%emt 00:00:03] [%clk 00:00:06]} 1-0

[Site "Europe Echecs"]